lending/lending_fUSD_20241120
["ID","MTS","AMOUNT","RATE_DAILY","PERIOD"]
[342803016,1732143105746,-600.15,0.00056438,120]
[342803017,1732143105757,-500.0,0.00056438,120]
[342803018,1732143105766,-226.403162,0.00056438,120]
[342803019,1732143105776,-500.0,0.00056438,120]
[342803020,1732143105785,-639.71,0.00056438,120]
[342803021,1732143105795,-500.0,0.00056438,120]
[342803022,1732143105804,-500.0,0.00056438,120]
[342803023,1732143105813,-226.403162,0.00056438,120]
[342803024,1732143105823,-1685.02,0.00056438,120]
[342803025,1732143105832,-500.0,0.00056438,120]
[342803026,1732143105841,-643.92,0.00056438,120]
[342803027,1732143105851,-500.0,0.00056438,120]
[342803028,1732143105860,-500.0,0.00056438,120]
[342803029,1732143105869,-1838.85,0.00056438,120]
[342803030,1732143105879,-503.41,0.00056438,120]
[342803031,1732143105892,-777.36,0.00056438,120]
[342803032,1732143105902,-500.0,0.00056438,120]
[342803033,1732143105911,-1088.52,0.00056438,120]
[342803034,1732143105921,-3963.88,0.00056438,120]
[342803035,1732143105932,-500.0,0.00056438,120]
[342803036,1732143105942,-439.698091,0.00056438,120]
[342803037,1732143105952,-500.0,0.00056438,120]
[342803038,1732143105965,-439.698091,0.00056438,120]
[342803039,1732143105978,-500.0,0.00056438,120]
[342803040,1732143105988,-500.0,0.00056438,120]
[342803041,1732143105998,-508.93,0.00056438,120]
[342803042,1732143106008,-500.0,0.00056438,120]
[342803043,1732143106017,-512.11862826,0.00056438,120]
[342803044,1732143106027,-500.0,0.00056438,120]
[342803045,1732143106036,-522.18,0.00056438,120]
[342803046,1732143106046,-674.72,0.00056438,120]
[342803047,1732143106055,-151.0,0.00056438,120]
[342803048,1732143106065,-1573.1,0.00056438,120]
[342803049,1732143106074,-500.0,0.00056438,120]
[342803050,1732143106084,-500.0,0.00056438,120]
[342803051,1732143106093,-500.0,0.00056438,120]
[342803052,1732143106103,-500.0,0.00056438,120]
[342803053,1732143106113,-1344.45,0.00056438,120]
[342803054,1732143106123,-500.0,0.00056438,120]
[342803055,1732143106132,-695.34,0.00056438,120]
[342803056,1732143106142,-5030.76,0.00056438,120]
[342803057,1732143106151,-993.23,0.00056438,120]
[342803058,1732143106162,-530.39,0.00056438,120]
[342803059,1732143106172,-500.0,0.00056438,120]
[342803060,1732143106182,-1007.71,0.00056438,120]
[342803061,1732143106191,-845.57,0.00056438,120]
[342803062,1732143106201,-1508.05,0.00056438,120]
[342803063,1732143106210,-1000.0,0.00056438,30]
[342803064,1732143106219,-500.0,0.00056438,120]
[342803065,1732143106229,-1949.27,0.00056438,120]
[342803066,1732143106240,-635.4,0.00056438,120]
[342803067,1732143106250,-3671.8,0.00056438,120]
[342803068,1732143106260,-500.0,0.00056438,120]
[342803069,1732143106269,-873.15,0.00056438,120]
[342803070,1732143106280,-500.0,0.00056438,120]
[342803071,1732143106289,-500.0,0.00056438,120]
[342803072,1732143106300,-1275.78,0.00056438,120]
[342803073,1732143106309,-1300.6,0.00056438,120]
[342803074,1732143106319,-1078.43,0.00056438,120]
[342803075,1732143106329,-500.0,0.00056438,120]
[342803076,1732143106340,-1015.57,0.00056438,120]
[342803077,1732143106349,-729.83,0.00056438,120]
[342803078,1732143106359,-562.04,0.00056438,120]
[342803079,1732143106368,-2596.1,0.00056438,120]
[342803080,1732143106378,-500.0,0.00056438,120]
[342803081,1732143106388,-2222.66,0.00056438,120]
[342803082,1732143106398,-500.0,0.00056438,120]
[342803083,1732143106408,-1080.64,0.00056438,120]
[342803084,1732143106418,-852.14,0.00056438,120]
[342803085,1732143106428,-569.32,0.00056438,120]
[342803086,1732143106438,-500.0,0.00056438,120]
[342803087,1732143106447,-509.24,0.00056438,120]
[342803088,1732143106456,-700.0,0.00056438,120]
[342803089,1732143106466,-928.5,0.00056438,120]
[342803090,1732143106475,-1411.12131,0.00056438,120]
[342803091,1732143106484,-151.0,0.00056438,120]
[342803092,1732143106494,-1411.12131,0.00056438,120]
[342803093,1732143106503,-151.0,0.00056438,120]
[342803094,1732143106514,-500.0,0.00056438,120]
[342803095,1732143106524,-500.0,0.00056438,120]
[342803096,1732143106534,-1806.6,0.00056438,120]
[342803097,1732143106544,-1129.79,0.00056438,120]
[342803098,1732143106554,-500.0,0.00056438,120]
[342803099,1732143106563,-500.0,0.00056438,120]
[342803100,1732143106573,-2425.19,0.00056438,120]
[342803101,1732143106583,-500.0,0.00056438,120]
[342803102,1732143106593,-625.0,0.00056438,120]
[342803103,1732143106603,-500.0,0.00056438,120]
[342803104,1732143106614,-500.0,0.00056438,120]
[342803105,1732143106624,-1018.93,0.00056438,120]
[342803106,1732143106635,-2073.72,0.00056438,120]
[342803107,1732143106645,-151.0,0.00056438,120]
[342803108,1732143106654,-151.0,0.00056438,120]
[342803109,1732143106664,-500.0,0.00056438,120]
[342803110,1732143106677,-1011.93,0.00056438,120]
[342803111,1732143106686,-247.575002,0.00056438,120]
[342803112,1732143106696,-500.0,0.00056438,120]
[342803113,1732143106706,-1257.41,0.00056438,120]
[342803114,1732143106716,-500.0,0.00056438,120]
[342803115,1732143106725,-1328.54,0.00056438,120]
[342803116,1732143106734,-893.2,0.00056438,120]
[342803117,1732143106744,-878.56,0.00056438,120]
[342803118,1732143106753,-1954.12,0.00056438,120]
[342803119,1732143106763,-1107.33,0.00056438,120]
[342803120,1732143106772,-5394.68,0.00056438,120]
[342803121,1732143106782,-500.0,0.00056438,120]
[342803122,1732143106792,-500.0,0.00056438,60]
[342803123,1732143106802,-500.0,0.00056438,120]
[342803124,1732143106813,-500.0,0.00056438,120]
[342803125,1732143106822,-151.0,0.00056438,120]
[342803126,1732143106832,-543.1,0.00056438,120]
[342803127,1732143106842,-965.73,0.00056438,120]
[342803128,1732143106851,-500.0,0.00056438,120]
[342803129,1732143106861,-500.0,0.00056438,120]
[342803130,1732143106870,-151.0,0.00056438,120]
[342803131,1732143106880,-233.459828,0.00056438,120]
[342803132,1732143106892,-500.0,0.00056438,120]
[342803133,1732143106901,-604.40260242,0.00056438,120]
[342803134,1732143106911,-500.0,0.00056438,120]
[342803135,1732143106920,-500.0,0.00056438,120]
[342803136,1732143106939,-151.0,0.00056438,120]
[342803137,1732143106949,-1308.091702,0.00056438,120]
[342803138,1732143106961,-154.57161737,0.00056438,120]
[342803139,1732143106971,-1317.76,0.00056438,120]
[342803140,1732143106981,-594.46,0.00056438,120]
[342803141,1732143106991,-1308.091702,0.00056438,120]
[342803142,1732143107002,-1510.86,0.00056438,120]
[342803143,1732143107012,-1617.12,0.00056438,120]
[342803144,1732143107022,-657.08,0.00056438,120]
[342803145,1732143107032,-4865.56,0.00056438,120]
[342803146,1732143107042,-628.07,0.00056438,120]
[342803147,1732143107052,-567.172995,0.00056438,120]
[342803148,1732143107061,-500.0,0.00056438,120]
[342803149,1732143107071,-500.0,0.00056438,120]
[342803150,1732143107081,-386.3504502,0.00056438,120]
[342803151,1732143107090,-567.172995,0.00056438,120]
[342803152,1732143107100,-151.0,0.00056438,120]
[342803153,1732143107110,-500.0,0.00056438,120]
[342803154,1732143107120,-2529.98,0.00056438,120]
[342803155,1732143107130,-500.0,0.00056438,120]
[342803156,1732143107139,-635.24,0.00056438,120]
[342803157,1732143107149,-750.97,0.00056438,120]
[342803158,1732143107158,-500.0,0.00056438,120]
[342803159,1732143107168,-1761.11,0.00056438,120]
[342803160,1732143107180,-624.76,0.00056438,120]
[342803161,1732143107190,-500.0,0.00056438,120]
[342803162,1732143107200,-46265.17,0.00056438,120]
[342803163,1732143107211,-500.0,0.00056438,120]
[342803164,1732143107221,-500.0,0.00056438,120]
[342803165,1732143107230,-151.0,0.00056438,120]
[342803166,1732143107241,-644.52,0.00056438,120]
[342803167,1732143107250,-880.93,0.00056438,120]
[342803168,1732143107259,-500.0,0.00056438,120]
[342803169,1732143107268,-458.85421133,0.00056438,120]
[342803170,1732143107277,-4390.12,0.00056438,120]
[342803171,1732143107287,-500.0,0.00056438,120]
[342803172,1732143107297,-500.0,0.00056438,120]
[342803173,1732143107307,-3641.91,0.00056438,120]
[342803174,1732143107318,-151.0,0.00056438,120]
[342803175,1732143107328,-500.0,0.00056438,120]
[342803176,1732143107338,-2046.77,0.00056438,120]
[342803177,1732143107348,-500.0,0.00056438,120]
[342803178,1732143107358,-151.0,0.00056438,120]
[342803179,1732143107368,-500.0,0.00056438,120]
[342803180,1732143107378,-500.0,0.00056438,120]
[342803181,1732143107388,-519.31,0.00056438,120]
[342803182,1732143107399,-1582.94,0.00056438,120]
[342803183,1732143107408,-1566.08,0.00056438,120]
[342803184,1732143107418,-1540.18,0.00056438,120]
[342803185,1732143107431,-500.0,0.00056438,120]
[342803186,1732143107442,-375.07292789,0.00056438,120]
[342803187,1732143107452,-500.0,0.00056438,120]
[342803188,1732143107461,-500.0,0.00056438,120]
[342803189,1732143107471,-151.0,0.00056438,120]
[342803190,1732143107481,-200.0,0.00056438,10]
[342803191,1732143107491,-151.0,0.00056438,120]
[342803192,1732143107500,-32182.96,0.00056438,120]
[342803193,1732143107509,-500.0,0.00056438,120]
[342803194,1732143107519,-2395.44,0.00056438,120]
[342803195,1732143107529,-500.0,0.00056438,120]
[342803196,1732143107538,-500.0,0.00056438,120]
[342803197,1732143107548,-156.39,0.00056438,120]
[342803198,1732143107558,-774.88,0.00056438,120]
[342803199,1732143107567,-500.0,0.00056438,120]
[342803200,1732143107576,-500.0,0.00056438,120]
[342803201,1732143107586,-500.0,0.00056438,120]
[342803202,1732143107596,-500.0,0.00056438,120]
[342803203,1732143107605,-500.0,0.00056438,120]
[342803204,1732143107616,-3018.97,0.00056438,120]
[342803205,1732143107626,-646.10662128,0.00056438,120]
[342803206,1732143107635,-1221.56,0.00056438,120]
[342803207,1732143107647,-949.33,0.00056438,120]
[342803208,1732143107657,-500.0,0.00056438,120]
[342803209,1732143107666,-500.0,0.00056438,120]
[342803210,1732143107682,-500.0,0.00056438,120]
[342803211,1732143107691,-500.0,0.00056438,120]
[342803212,1732143107919,-512.47,0.00056438,120]
[342803213,1732143107932,-500.0,0.00056438,120]
[342803214,1732143107941,-975.73,0.00056438,120]
[342803215,1732143107951,-500.0,0.00056438,120]
[342803216,1732143107961,-1680.87,0.00056438,120]
[342803217,1732143107973,-2068.97,0.00056438,120]
[342803218,1732143107982,-509.92,0.00056438,120]
[342803219,1732143107992,-500.0,0.00056438,120]
[342803220,1732143108001,-2386.08,0.00056438,120]
[342803221,1732143108011,-850.0,0.00056438,120]
[342803222,1732143108020,-2587.78,0.00056438,120]
[342803223,1732143108029,-1481.97,0.00056438,120]
[342803224,1732143108039,-500.0,0.00056438,120]
[342803225,1732143108049,-1478.74,0.00056438,120]
[342803226,1732143108059,-500.0,0.00056438,120]
[342803227,1732143108068,-500.0,0.00056438,120]
[342803228,1732143108078,-580.13,0.00056438,120]
[342803229,1732143108087,-500.0,0.00056438,120]
[342803230,1732143108097,-500.0,0.00056438,120]
[342803231,1732143108106,-500.0,0.00056438,120]
[342803232,1732143108116,-634.62027805,0.00056438,120]
[342803233,1732143108126,-1753.89,0.00056438,120]
[342803234,1732143108135,-500.0,0.00056438,120]
[342803235,1732143108145,-500.0,0.00056438,120]
[342803236,1732143108154,-816.51,0.00056438,120]
[342803237,1732143108164,-2245.37,0.00056438,120]
[342803238,1732143108177,-10880.09,0.00056438,120]
[342803239,1732143108186,-500.0,0.00056438,120]
[342803240,1732143108196,-500.0,0.00056438,120]
[342803241,1732143108205,-500.0,0.00056438,120]
[342803242,1732143108215,-3622.31,0.00056438,120]
[342803243,1732143108224,-502.6,0.00056438,120]
[342803244,1732143108235,-500.0,0.00056438,120]
[342803245,1732143108244,-500.0,0.00056438,120]
[342803246,1732143108254,-500.0,0.00056438,120]
[342803247,1732143108264,-1317.84,0.00056438,120]
[342803248,1732143108274,-1518.89,0.00056438,90]
[342803249,1732143108284,-1643.31,0.00056438,120]
[342803250,1732143108293,-587.4962289,0.00056438,120]
[342803251,1732143108303,-1298.63,0.00056438,120]
[342803252,1732143108312,-943.47,0.00056438,120]
[342803253,1732143108322,-500.0,0.00056438,120]
[342803254,1732143108331,-1649.32,0.00056438,120]
[342803255,1732143108340,-550.87,0.00056438,120]
[342803256,1732143108350,-5640.48,0.00056438,120]
[342803257,1732143108359,-2158.9,0.00056438,120]
[342803258,1732143108368,-500.0,0.00056438,120]
[342803259,1732143108377,-241.20066437,0.00056438,120]
[342803260,1732143108387,-1165.26,0.00056438,120]
[342803261,1732143108397,-1244.51,0.00056438,120]
[342803262,1732143108406,-500.0,0.00056438,120]
[342803263,1732143108416,-250.0,0.00056438,120]
[342803264,1732143108428,-500.0,0.00056438,120]
[342803265,1732143108437,-9870.91,0.00056438,120]
[342803266,1732143108446,-1110.14,0.00056438,120]
[342803267,1732143108455,-986.78,0.00056438,120]
[342803268,1732143108464,-567.02,0.00056438,120]
[342803269,1732143108474,-500.0,0.00056438,120]
[342803270,1732143108484,-651.9,0.00056438,120]
[342803271,1732143108493,-500.0,0.00056438,120]
[342803272,1732143108502,-500.0,0.00056438,120]
[342803273,1732143108511,-3368.96,0.00056438,120]
[342803274,1732143108520,-500.0,0.00056438,120]
[342803275,1732143108529,-6243.58,0.00056438,120]
[342803276,1732143108539,-500.0,0.00056438,120]
[342803277,1732143108548,-1221.81,0.00056438,120]
[342803278,1732143108558,-1021.75,0.00056438,120]
[342803279,1732143108567,-1378.96,0.00056438,120]
[342803280,1732143108576,-500.0,0.00056438,120]
[342803281,1732143108586,-500.0,0.00056438,120]
[342803282,1732143108595,-1402.48,0.00056438,120]
[342803283,1732143108604,-2324.89,0.00056438,120]
[342803284,1732143108613,-1098.99,0.00056438,7]
[342803285,1732143108623,-500.0,0.00056438,120]
[342803286,1732143108632,-500.0,0.00056438,120]
[342803287,1732143108641,-3357.52,0.00056438,120]
[342803288,1732143108650,-500.0,0.00056438,120]
[342803289,1732143108661,-1503.83,0.00056438,120]
[342803290,1732143108670,-631.52,0.00056438,120]
[342803291,1732143108681,-500.0,0.00056438,120]
[342803292,1732143108691,-610.46,0.00056438,120]
[342803293,1732143108700,-4485.14,0.00056438,120]
[342803294,1732143108710,-500.0,0.00056438,120]
[342803295,1732143108720,-676.3,0.00056438,120]
[342803296,1732143108729,-1449.22,0.00056438,120]
[342803297,1732143108740,-802.14,0.00056438,120]
[342803298,1732143108750,-1005.77,0.00056438,120]
[342803299,1732143108759,-62267.29,0.00056438,5]
[342803300,1732143108768,-500.0,0.00056438,120]
[342803301,1732143108777,-500.0,0.00056438,120]
[342803302,1732143108788,-1000.0,0.00056438,120]
[342803303,1732143108797,-500.0,0.00056438,120]
[342803304,1732143108806,-500.0,0.00056438,120]
[342803305,1732143108816,-500.0,0.00056438,120]
[342803306,1732143108825,-1200.11,0.00056438,120]
[342803307,1732143108835,-500.0,0.00056438,120]
[342803308,1732143108844,-4633.73,0.00056438,120]
[342803309,1732143108853,-1462.06,0.00056438,120]
[342803310,1732143108863,-1071.61,0.00056438,120]
[342803311,1732143108872,-1246.53,0.00056438,120]
[342803312,1732143108881,-500.0,0.00056438,120]
[342803313,1732143108895,-665.76,0.00056438,120]
[342803314,1732143108904,-245.9644212,0.00056438,120]
[342803315,1732143108914,-1619.4,0.00056438,120]
[342803316,1732143108924,-4155.63,0.00056438,120]
[342803317,1732143108934,-534.16,0.00056438,120]
[342803318,1732143108943,-500.0,0.00056438,120]
[342803319,1732143108952,-500.0,0.00056438,120]
[342803320,1732143108961,-716.03,0.00056438,120]
[342803321,1732143108973,-710.7,0.00056438,120]
[342803322,1732143108983,-1328.15,0.00056438,120]
[342803323,1732143108992,-3842.23,0.00056438,120]
[342803324,1732143109002,-151.0,0.00056438,120]
[342803325,1732143109012,-1770.4,0.00056438,120]
[342803326,1732143109022,-1828.16,0.00056438,120]
[342803327,1732143109031,-734.2,0.00056438,120]
[342803328,1732143109040,-500.0,0.00056438,120]
[342803329,1732143109050,-500.0,0.00056438,120]
[342803330,1732143109059,-208.11453,0.00056438,120]
[342803331,1732143109068,-4113.57,0.00056438,120]
[342803332,1732143109078,-501.75255509,0.00056438,120]
[342803333,1732143109087,-3361.09,0.00056438,120]
[342803334,1732143109097,-2336.41,0.00056438,120]
[342803335,1732143109107,-208.11453,0.00056438,120]
[342803336,1732143109117,-914.26,0.00056438,120]
[342803337,1732143109127,-1225.66,0.00056438,120]
[342803338,1732143109136,-2227.59,0.00056438,120]
[342803339,1732143109146,-1199.34,0.00056438,120]
[342803340,1732143109156,-818.4,0.00056438,120]
[342803341,1732143109165,-500.0,0.00056438,120]
[342803342,1732143109174,-4656.57,0.00056438,120]
[342803343,1732143109184,-500.0,0.00056438,120]
[342803344,1732143109194,-945.67,0.00056438,120]
[342803345,1732143109203,-656.2,0.00056438,120]
[342803346,1732143109213,-500.0,0.00056438,120]
[342803347,1732143109222,-1601.15,0.00056438,120]
[342803348,1732143109231,-2590.51,0.00056438,120]
[342803349,1732143109242,-151.0,0.00056438,120]
[342803350,1732143109251,-500.0,0.00056438,120]
[342803351,1732143109261,-500.0,0.00056438,120]
[342803352,1732143109271,-1087.48,0.00056438,120]
[342803353,1732143109280,-617.4,0.00056438,120]
[342803354,1732143109290,-500.0,0.00056438,120]
[342803355,1732143109299,-500.0,0.00056438,120]
[342803356,1732143109308,-1021.22,0.00056438,120]
[342803357,1732143109318,-530.21,0.00056438,120]
[342803358,1732143109327,-500.0,0.00056438,120]
[342803359,1732143109337,-151.0,0.00056438,120]
[342803360,1732143109347,-4078.12,0.00056438,120]
[342803361,1732143109356,-609.85,0.00056438,120]
[342803362,1732143109365,-500.0,0.00056438,120]
[342803363,1732143109375,-1271.08,0.00056438,120]
[342803364,1732143109384,-185.406492,0.00056438,120]
[342803365,1732143109394,-500.0,0.00056438,120]
[342803366,1732143109403,-630.13,0.00056438,120]
[342803367,1732143109417,-1053.42,0.00056438,120]
[342803368,1732143109438,-868.75,0.00056438,120]
[342803369,1732143109456,-3054.48,0.00056438,120]
[342803370,1732143109475,-10737.37,0.00056438,21]
[342803371,1732143109495,-772.0,0.00056438,120]
[342803372,1732143109512,-185.406492,0.00056438,120]
[342803373,1732143109531,-500.0,0.00056438,120]
[342803374,1732143109553,-1615.7,0.00056438,120]
[342803375,1732143109573,-790.82,0.00056438,120]
[342803376,1732143109590,-500.0,0.00056438,120]
[342803377,1732143109611,-500.0,0.00056438,120]
[342803378,1732143109626,-386.97144052,0.00056438,120]
[342803379,1732143109650,-500.0,0.00056438,120]
[342803380,1732143109663,-500.0,0.00056438,120]
[342803381,1732143109683,-500.0,0.00056438,120]
[342803382,1732143109696,-500.0,0.00056438,120]
[342803383,1732143109723,-2780.77,0.00056438,120]
[342803384,1732143109742,-500.0,0.00056438,120]
[342803385,1732143109762,-3170.06,0.00056438,120]
[342803386,1732143109781,-189.710059,0.00056438,120]
[342803387,1732143109798,-530.51,0.00056438,120]
[342803388,1732143109814,-500.0,0.00056438,120]
[342803389,1732143109833,-814.28,0.00056438,120]
[342803390,1732143109851,-500.0,0.00056438,120]
[342803391,1732143109866,-500.0,0.00056438,120]
[342803392,1732143109882,-500.0,0.00056438,120]
[342803393,1732143109902,-4610.65,0.00056438,120]
[342803394,1732143109917,-189.710059,0.00056438,120]
[342803395,1732143109933,-1053.94,0.00056438,120]
[342803396,1732143109950,-832.21,0.00056438,120]
[342803397,1732143109966,-559.12,0.00056438,120]
[342803398,1732143109982,-500.0,0.00056438,120]
[342803399,1732143109997,-500.0,0.00056438,120]
[342803400,1732143110014,-962.23,0.00056438,120]
[342803401,1732143110028,-500.0,0.00056438,120]
[342803402,1732143110043,-630.95,0.00056438,120]
[342803403,1732143110061,-500.0,0.00056438,120]
[342803404,1732143110076,-7093.52,0.00056438,120]
[342803405,1732143110091,-1497.99,0.00056438,120]
[342803406,1732143110106,-3030.53,0.00056438,120]
[342803407,1732143110123,-562.36912922,0.00056438,120]
[342803408,1732143110138,-2002.76,0.00056438,120]
[342803409,1732143110152,-4996.62,0.00056438,120]
[342803410,1732143110166,-1038.47,0.00056438,120]
[342803411,1732143110182,-500.0,0.00056438,120]
[342803412,1732143110197,-3755.03,0.00056438,120]
[342803413,1732143110213,-500.0,0.00056438,120]
[342803414,1732143110227,-500.33,0.00056438,120]
[342803415,1732143110242,-371.66929633,0.00056438,120]
[342803416,1732143110257,-619.43,0.00056438,120]
[342803417,1732143110272,-218.714706,0.00056438,120]
[342803418,1732143110287,-1395.84,0.00056438,120]
[342803419,1732143110302,-4210.05,0.00056438,120]
[342803420,1732143110317,-6717.87,0.00056438,120]
[342803421,1732143110333,-500.0,0.00056438,120]
[342803422,1732143110348,-4619.32,0.00056438,120]
[342803423,1732143110363,-2125.56,0.00056438,120]
[342803424,1732143110379,-500.0,0.00056438,120]
[342803425,1732143110394,-1522.48,0.00056438,120]
[342803426,1732143110409,-500.0,0.00056438,120]
[342803427,1732143110425,-2913.49,0.00056438,120]
[342803428,1732143110439,-500.0,0.00056438,120]
[342803429,1732143110453,-500.0,0.00056438,120]
[342803430,1732143110468,-220.50684825,0.00056438,120]
[342803431,1732143110484,-6408.58,0.00056438,60]
[342803432,1732143110500,-8536.13,0.00056438,120]
[342803433,1732143110514,-163.746603,0.00056438,120]
[342803434,1732143110530,-500.0,0.00056438,120]
[342803435,1732143110545,-931.52,0.00056438,120]
[342803436,1732143110560,-5185.83,0.00056438,120]
[342803437,1732143110575,-500.0,0.00056438,120]
[342803438,1732143110590,-873.24,0.00056438,120]
[342803439,1732143110603,-1838.8,0.00056438,120]
[342803440,1732143110618,-163.746603,0.00056438,120]
[342803441,1732143110633,-500.0,0.00056438,120]
[342803442,1732143110649,-1525.45,0.00056438,120]
[342803443,1732143110664,-1373.0,0.00056438,120]
[342803444,1732143110680,-1659.86,0.00056438,120]
[342803445,1732143110698,-500.0,0.00056438,120]
[342803446,1732143110712,-500.0,0.00056438,120]
[342803447,1732143110727,-5907.77,0.00056438,120]
[342803448,1732143110741,-647.02,0.00056438,120]
[342803449,1732143110756,-1210.69,0.00056438,120]
[342803450,1732143110770,-500.0,0.00056438,120]
[342803451,1732143110785,-500.0,0.00056438,120]
[342803452,1732143110799,-526.64,0.00056438,120]
[342803453,1732143110814,-12504.89,0.00056438,120]
[342803454,1732143110829,-2076.98,0.00056438,120]
[342803455,1732143110843,-1181.36,0.00056438,120]
[342803456,1732143110859,-677.21,0.00056438,120]
[342803457,1732143110872,-2434.04,0.00056438,120]
[342803458,1732143110888,-1109.03,0.00056438,120]
[342803459,1732143110903,-500.0,0.00056438,120]
[342803460,1732143110917,-500.0,0.00056438,120]
[342803461,1732143110939,-151.0,0.00056438,30]
[342803462,1732143110954,-1099.32,0.00056438,120]
[342803463,1732143110973,-4681.73,0.00056438,120]
[342803464,1732143110987,-651.95,0.00056438,120]
[342803465,1732143111002,-151.0,0.00056438,120]
[342803466,1732143111018,-1502.22,0.00056438,120]
[342803467,1732143111034,-554.67963597,0.00056438,120]
[342803468,1732143111050,-757.95,0.00056438,120]
[342803469,1732143111065,-986.66,0.00056438,120]
[342803470,1732143111080,-500.0,0.00056438,120]
[342803471,1732143111095,-151.0,0.00056438,120]
[342803472,1732143111110,-880.48,0.00056438,120]
[342803473,1732143111126,-500.0,0.00056438,120]
[342803474,1732143111141,-1166.87,0.00056438,120]
[342803475,1732143111156,-151.0,0.00056438,120]
[342803476,1732143111171,-1450.31,0.00056438,120]
[342803477,1732143111187,-2144.4,0.00056438,120]
[342803478,1732143111202,-548.14,0.00056438,120]
[342803479,1732143111217,-151.0,0.00056438,120]
[342803480,1732143111234,-500.0,0.00056438,120]
[342803481,1732143111248,-1032.14,0.00056438,120]
[342803482,1732143111263,-14474.38,0.00056438,120]
[342803483,1732143111280,-16729.96,0.00056438,120]
[342803484,1732143111295,-500.0,0.00056438,120]
[342803485,1732143111311,-500.0,0.00056438,120]
[342803486,1732143111326,-500.0,0.00056438,120]
[342803487,1732143111342,-500.0,0.00056438,120]
[342803488,1732143111359,-500.0,0.00056438,120]
[342803489,1732143111376,-2375.8,0.00056438,120]
[342803490,1732143111392,-533.88,0.00056438,120]
[342803491,1732143111409,-726.78,0.00056438,120]
[342803492,1732143111425,-500.0,0.00056438,120]
[342803493,1732143111439,-3517.73,0.00056438,120]
[342803494,1732143111455,-500.0,0.00056438,120]
[342803495,1732143111471,-587.84580717,0.00056438,120]
[342803496,1732143111487,-2949.54,0.00056438,120]
[342803497,1732143111501,-500.0,0.00056438,120]
[342803498,1732143111515,-680.36,0.00056438,120]
[342803499,1732143111530,-629.45,0.00056438,120]
[342803500,1732143111546,-500.0,0.00056438,120]
[342803501,1732143111562,-1835.32,0.00056438,120]
[342803502,1732143111578,-500.0,0.00056438,120]
[342803503,1732143111593,-1077.92,0.00056438,120]
[342803504,1732143111609,-567.38,0.00056438,120]
[342803505,1732143111625,-1270.02,0.00056438,120]
[342803506,1732143111639,-1080.78,0.00056438,120]
[342803507,1732143111654,-500.0,0.00056438,120]
[342803508,1732143111669,-152.611206,0.00056438,110]
[342803509,1732143111685,-500.0,0.00056438,120]
[342803510,1732143111700,-794.46,0.00056438,120]
[342803511,1732143111715,-730.91,0.00056438,120]
[342803512,1732143111732,-836.47,0.00056438,120]
[342803513,1732143111747,-500.0,0.00056438,120]
[342803514,1732143111762,-1006.93,0.00056438,120]
[342803515,1732143111777,-877.06,0.00056438,120]